bitfinex/quotes_ETHUSD_20250703
["timestamp","ask_amount","ask_price","bid_price","bid_amount"]
[1751522875822,0.192,2599.0,2598.7,10.0]
[1751522876207,0.192,2599.0,2598.5,10.192]
[1751522876551,0.192,2598.9,2598.5,10.0]
[1751522876931,0.192,2598.9,2598.0,1.947]
[1751522876932,0.12040863,2599.0,2598.1,0.7636]
[1751522877105,0.192,2598.6,2598.3,10.0]
[1751522877309,0.192,2598.6,2598.1,0.9556]
[1751522877534,0.192,2598.6,2598.2,7.898]
[1751522877852,0.192,2598.6,2598.3,10.0]
[1751522878544,0.192,2598.6,2598.1,0.9556]
[1751522878545,0.9804,2598.6,2598.1,0.192]
[1751522878785,0.192,2598.2,2597.8,7.896]
[1751522879046,0.192,2598.2,2597.9,10.0]
[1751522879450,0.192,2598.2,2597.8,0.5]
[1751522879648,0.192,2598.2,2597.9,10.0]
[1751522882118,0.192,2598.2,2597.8,0.5]
[1751522882323,0.192,2598.2,2597.8,8.394]
[1751522882324,0.8017,2598.1,2597.8,8.394]
[1751522882528,0.92212406,2598.1,2597.9,10.0]
[1751522882734,0.92212406,2598.1,2597.8,8.395]
[1751522882930,0.92212406,2598.1,2597.6,0.02]
[1751522883225,0.192,2597.8,2597.6,0.02]
[1751522883426,0.8017,2597.7,2597.6,0.02]
[1751522884983,0.92216128,2597.7,2597.6,0.02]
[1751522885156,0.8017,2597.7,2597.6,0.02]
[1751522887537,4.65125922,2597.7,2597.6,0.02]
[1751522887953,4.66455922,2597.7,2597.6,0.02]
[1751522888265,0.93547362,2597.7,2597.6,0.02]
[1751522888563,2.88347362,2597.7,2597.6,0.02]
[1751522890364,2.763,2597.7,2597.6,0.02]
[1751522890771,6.61255922,2597.7,2597.6,0.02]
[1751522891077,2.88347563,2597.7,2597.6,0.02]
[1751522891229,2.763,2597.7,2597.6,0.02]
[1751522892256,2.759,2597.7,2597.6,0.02]
[1751522894066,6.60855922,2597.7,2597.6,0.02]
[1751522894370,2.759,2597.7,2597.6,0.02]
[1751522895869,6.60855922,2597.7,2597.6,0.02]
[1751522896640,6.60855922,2597.7,2597.1,0.02]
[1751522896641,4.65380032,2597.2,2597.1,0.02]
[1751522897869,4.77431235,2597.2,2597.1,0.02]
[1751522898382,14.61831264,2597.2,2597.1,0.02]
[1751522898569,15.04780032,2597.2,2597.1,0.02]
[1751522898945,15.16831289,2597.2,2597.1,0.02]
[1751522899182,15.04780032,2597.2,2597.1,0.02]
[1751522899467,15.16831329,2597.2,2597.1,0.02]
[1751522899652,15.04780032,2597.2,2597.1,0.02]
[1751522900050,15.16831162,2597.2,2597.1,0.02]
[1751522900264,15.16831458,2597.2,2597.1,0.02]
[1751522900563,15.04780032,2597.2,2597.1,0.02]
[1751522901477,4.65380032,2597.2,2597.1,0.02]
[1751522901674,14.49780032,2597.2,2597.1,0.02]
[1751522902973,23.03780031,2597.2,2597.1,0.02]
[1751522903152,33.15831442,2597.2,2597.1,1e-08]
[1751522904070,5.1585417,2596.7,2596.0,0.02]
[1751522904251,24.17642988,2596.7,2596.0,0.02]
[1751522904449,65.86245387,2596.7,2596.0,0.02]
[1751522904650,4.60943174,2596.1,2596.0,0.02]
[1751522904853,14.45043174,2596.1,2596.0,0.02]
[1751522906652,15.00043174,2596.1,2596.0,0.02]
[1751522906853,15.12099041,2596.1,2596.0,0.02]
[1751522908875,15.12299041,2596.1,2596.0,0.02]
[1751522910078,10.72105867,2596.1,2596.0,0.02]
[1751522910263,0.7996,2596.3,2596.0,0.02]
[1751522910460,1.946,2596.1,2596.0,0.02]
[1751522911747,2.138,2596.1,2596.0,0.02]
[1751522912376,0.192,2596.1,2596.0,0.02]
[1751522913876,1.946,2596.2,2596.0,0.02]
[1751522916570,0.192,2596.1,2596.0,0.02]
[1751522918752,16.62937401,2596.1,2596.0,0.02]
[1751522919378,16.62938517,2596.1,2596.0,0.02]
[1751522919562,26.62938517,2596.1,2596.0,0.02]
[1751522919962,50.32540917,2596.1,2596.0,0.02]
[1751522920474,4.61776071,2595.4,2594.9,0.02]
[1751522920669,0.192,2595.1,2594.9,0.02]
[1751522923562,1.951,2595.0,2594.9,0.02]
[1751522927054,0.192,2595.1,2594.9,0.02]
[1751522927257,1.951,2595.0,2594.9,0.02]
[1751522930664,0.192,2595.1,2595.0,0.7884]
[1751522930965,2.143,2595.1,2595.0,0.7884]
[1751522932267,1.951,2595.1,2595.0,0.7884]
[1751522935194,1.951,2595.3,2595.0,0.7884]
[1751522935378,1.951,2595.3,2595.0,1.88844]
[1751522935974,1.951,2595.3,2595.0,0.7884]
[1751522936671,0.192,2595.4,2595.0,0.7884]
[1751522936979,1.951,2595.3,2595.0,0.7884]
[1751522941097,1.951,2595.4,2595.0,0.7884]
[1751522941301,1.951,2595.4,2595.2,0.192]
[1751522942370,0.192,2595.7,2595.2,0.192]
[1751522942574,1.951,2595.6,2595.2,0.192]
[1751522943194,1.951,2595.6,2594.9,0.02]
[1751522943195,1.951,2595.6,2595.3,0.7749]
[1751522943407,1.951,2595.6,2595.3,0.9669]
[1751522943573,1.951,2595.8,2595.3,0.7749]
[1751522943780,1.951,2595.8,2595.5,0.192]
[1751522944191,1.951,2595.8,2595.6,0.7823]
[1751522944591,0.202,2596.0,2595.6,0.7823]
[1751522944789,1.961,2596.0,2595.7,0.192]
[1751522949486,2.3683,2596.0,2595.6,0.9743]
[1751522951420,2.1763,2596.0,2595.1,10.0]
[1751522951621,6.0284028,2596.0,2595.2,0.8288]
[1751522951792,0.192,2595.7,2595.2,1.0208]
[1751522954023,0.9846,2595.7,2595.2,1.0208]
[1751522954226,0.7926,2595.7,2595.2,0.8288]
[1751522954526,0.192,2595.5,2595.1,0.192]
[1751522954708,1.941,2595.4,2595.1,0.192]
[1751522955189,1.93714703,2595.4,2595.1,0.212]
[1751522959459,0.192,2595.3,2595.1,0.02]
[1751522961310,0.9541,2595.3,2595.1,0.02]
[1751522962941,3.85326757,2595.2,2595.1,0.02]
[1751522963150,4.63736757,2595.2,2595.1,0.02]
[1751522963433,24.44536757,2595.2,2595.1,0.02]
[1751522963623,25.24680701,2595.2,2595.1,0.02]
[1751522965137,32.37998831,2595.2,2595.1,0.02]
[1751522966148,20.84353944,2595.2,2595.1,0.02]
[1751522966438,29.8661,2595.2,2595.1,0.02]
[1751522967439,33.71936757,2595.2,2595.1,0.02]
[1751522968346,29.8661,2595.2,2595.1,0.02]
[1751522968646,37.85609999,2595.2,2595.1,0.02]
[1751522969002,28.03209999,2595.2,2595.1,0.02]
[1751522969203,29.18899999,2595.2,2595.1,0.02]
[1751522969400,11.199,2595.2,2595.1,0.02]
[1751522971024,9.258,2595.2,2595.1,0.02]
[1751522971229,11.199,2595.2,2595.1,0.8377]
[1751522974619,9.258,2595.2,2595.1,0.8377]
[1751522974940,0.01,2595.4,2595.1,0.8377]
[1751522974941,1.941,2595.3,2595.1,1.0297]
[1751522975633,0.01,2595.4,2595.1,1.0297]
[1751522976149,0.01,2595.4,2595.2,0.82]
[1751522976335,0.01,2595.4,2595.3,0.192]
[1751522976527,0.01,2595.4,2595.3,1.012]
[1751522979650,0.01,2595.4,2595.3,0.192]
[1751522980514,0.01,2595.4,2595.1,0.212]
[1751522980717,0.01,2595.4,2595.1,2.10442]
[1751522983444,0.01,2595.4,2595.2,10.7864]
[1751522983745,0.01,2595.4,2595.3,0.9784]
[1751522986946,0.01,2595.4,2595.3,21.92111909]
[1751522987249,0.01,2595.4,2595.3,18.8403]
[1751522987557,0.01,2595.4,2595.3,22.5965974]
[1751522987921,0.01,2595.4,2595.3,29.72835669]
[1751522991956,0.01,2595.4,2595.3,22.5935974]
[1751522992127,0.01,2595.4,2595.3,18.8373]
[1751522992653,0.01,2595.4,2595.3,0.192]
[1751522992852,0.01,2595.4,2595.3,8.063]
[1751522993238,0.01,2595.4,2595.3,0.192]
[1751522994449,0.01,2595.4,2595.1,7.892]
[1751522994667,0.01,2595.4,2595.3,7.13175929]
[1751522994825,0.01,2595.4,2595.3,18.12565929]
[1751522995028,0.01,2595.4,2595.3,22.26598816]
[1751522995729,0.01,2595.4,2595.3,18.41286907]
[1751522996057,0.01,2595.4,2595.3,11.28110978]
[1751522996265,0.01,2595.4,2595.3,14.92809783]
[1751522997634,0.01,2595.4,2595.3,22.80709783]
[1751522998368,0.01,2595.4,2595.3,26.66021692]
[1751522998670,0.01,2595.4,2595.3,27.21021692]
[1751522998836,0.01,2595.4,2595.3,28.73716767]
[1751522999236,0.01,2595.4,2595.3,27.21021692]
[1751522999566,0.01,2595.4,2595.3,29.49021262]
[1751523001068,0.01,2595.4,2595.3,23.35709783]
[1751523001268,0.01,2595.4,2595.3,27.21921692]
[1751523002250,0.01,2595.4,2595.3,29.49921262]
[1751523003840,0.01,2595.4,2595.3,27.23921692]
[1751523004250,0.01,2595.4,2595.3,29.53058077]
[1751523004456,0.01,2595.4,2595.3,27.23921692]
[1751523007173,0.01,2595.4,2595.3,29.53059471]
[1751523007669,0.01,2595.4,2595.3,25.11847562]
[1751523008675,0.01,2595.4,2595.3,22.82709783]
[1751523009766,0.01,2595.4,2595.3,12.82509783]
[1751523009935,0.01,2595.4,2595.3,24.3526121]
[1751523010442,0.01,2595.4,2595.3,24.3516121]
[1751523010774,0.01,2595.4,2595.3,22.82409783]
[1751523011463,0.01,2595.4,2595.3,22.02119783]
[1751523011672,0.01,2595.4,2595.3,13.85898805]
[1751523011861,0.01,2595.4,2595.3,10.212]
[1751523012060,0.01,2595.4,2595.3,18.087]
[1751523013055,0.01,2595.4,2595.3,10.212]
[1751523013374,0.01,2595.4,2595.3,18.087]
[1751523013544,0.01,2595.4,2595.3,20.40251427]
[1751523013745,0.01,2595.4,2595.3,27.04718178]
[1751523016946,0.01,2595.4,2595.3,22.64406269]
[1751523017872,0.01,2595.4,2595.3,29.77589823]
[1751523018077,0.01,2595.4,2595.3,31.30408437]
[1751523019575,0.01,2595.4,2595.3,31.30405272]
[1751523020160,0.01,2595.4,2595.3,29.77589823]
[1751523021451,0.01,2595.4,2595.3,33.62901732]
[1751523021774,0.01,2595.4,2595.3,35.92086816]
[1751523023351,0.01,2595.4,2595.3,34.17901732]
[1751523025689,0.01,2595.4,2595.3,30.32589823]
[1751523025856,0.01,2595.4,2595.3,32.61475763]
[1751523026055,0.01,2595.4,2595.3,32.06475763]
[1751523026583,0.01,2595.4,2595.3,32.06375763]
[1751523027685,0.01,2595.4,2595.3,24.19575763]
[1751523027857,0.01,2595.4,2595.3,16.27592209]
[1751523028055,0.01,2595.4,2595.3,24.14292209]
[1751523028286,0.01,2595.4,2595.3,2.5068594]
[1751523028463,0.01,2595.4,2595.3,8.078]
[1751523028668,0.01,2595.4,2595.3,18.078]
[1751523029489,0.01,2595.4,2595.3,19.60819773]
[1751523030278,0.01,2595.4,2595.3,18.077]
[1751523031474,0.01,2595.4,2595.3,25.20883554]
[1751523032092,0.01,2595.4,2595.3,26.73903327]
[1751523032294,0.01,2595.4,2595.3,25.20883554]
[1751523033710,0.8029,2595.4,2595.3,18.073]
[1751523033863,0.8029,2595.4,2595.3,10.02]
[1751523034063,0.8029,2595.4,2595.3,17.881]
[1751523034564,0.8029,2595.4,2595.3,7.881]
[1751523036261,0.8029,2595.4,2595.3,7.879]
[1751523038396,0.01,2595.4,2595.3,25.01083554]
[1751523038567,0.01,2595.4,2595.3,17.15183554]
[1751523038769,0.01,2595.4,2595.3,25.00783554]
[1751523040578,0.01,2595.4,2595.3,17.876]
[1751523041773,0.01,2595.4,2595.3,18.068]
[1751523043770,0.01,2595.4,2595.3,17.873]
[1751523044715,0.7646,2595.4,2595.3,0.02]
[1751523045088,0.7646,2595.4,2595.3,7.873]
[1751523045921,0.9566,2595.4,2595.3,7.873]
[1751523048626,0.9566,2595.4,2595.3,0.02]
[1751523055421,0.202,2595.4,2595.3,0.02]
[1751523059424,0.9755,2595.4,2595.3,0.02]
[1751523065141,0.202,2595.4,2595.3,0.02]
[1751523069752,1.028,2595.4,2595.3,0.02]
[1751523074036,0.202,2595.4,2595.3,0.02]
[1751523078053,1.0012,2595.4,2595.3,0.02]
[1751523081324,0.202,2595.4,2595.3,0.02]
[1751523084235,0.01,2595.4,2595.3,0.02]
[1751523084851,0.01,2595.4,2595.3,17.94333554]
[1751523085361,0.01,2595.4,2595.3,25.79433554]
[1751523085660,0.01,2595.4,2595.3,27.32453327]
[1751523085966,0.01,2595.4,2595.3,30.69546656]
[1751523086141,0.01,2595.4,2595.3,30.69549109]
[1751523086339,0.01,2595.4,2595.3,30.69465629]
[1751523089331,0.01,2595.4,2595.3,29.16280889]
[1751523092351,0.01,2595.4,2595.3,35.86078738]
[1751523092551,0.01,2595.4,2595.3,33.56592798]
[1751523093351,0.01,2595.4,2595.3,35.85739616]
[1751523093937,0.01,2595.4,2595.3,24.15327707]
[1751523094146,0.01,2595.4,2595.3,29.71180889]
[1751523095941,0.01,2595.4,2595.3,21.86180889]
[1751523096163,0.01,2595.4,2595.3,23.5562079]
[1751523096361,0.01,2595.4,2595.3,22.7647079]
[1751523096533,0.01,2595.4,2595.3,21.23747335]
[1751523097367,0.01,2595.4,2595.3,28.36930889]
[1751523097674,0.01,2595.4,2595.3,30.66584344]
[1751523097868,0.01,2595.4,2595.3,35.06896253]
[1751523098072,0.01,2595.4,2595.3,35.83319616]
[1751523101245,0.01,2595.4,2595.3,33.54172798]
[1751523101948,0.01,2596.0,2595.7,3.85247924]
[1751523102251,0.01,2596.0,2595.9,17.93003554]
[1751523102556,0.01,2596.0,2595.9,18.12203554]
[1751523103163,0.01,2596.0,2595.9,10.9902]
[1751523103373,0.01,2596.0,2595.9,18.039]
[1751523108987,0.01,2596.0,2595.9,25.17083554]
[1751523109188,0.01,2596.0,2595.9,27.80858389]
[1751523110293,0.01,2596.0,2595.9,20.67674835]
[1751523115092,0.01,2596.0,2595.9,27.80858389]
[1751523115692,0.01,2596.0,2595.9,29.33564822]
[1751523117603,0.01,2596.0,2595.9,29.62609992]
[1751523120895,0.01,2596.0,2595.9,20.67374835]
[1751523121406,0.01,2596.0,2595.9,12.82974835]
[1751523121600,0.01,2596.0,2595.9,0.192]
[1751523121907,0.8286,2595.9,2595.6,0.192]
[1751523122089,0.192,2595.8,2595.3,0.02]
[1751523122287,2.7506,2595.7,2595.3,8.056]
[1751523123268,2.7506,2595.7,2595.4,7.844]
[1751523127280,2.7506,2595.7,2595.3,0.212]
[1751523127474,2.7506,2595.7,2595.4,7.844]
[1751523128480,2.7506,2595.7,2595.4,7.864]
[1751523129218,2.7506,2595.7,2595.4,0.02]
[1751523129415,2.7506,2595.7,2595.4,7.865]
[1751523130706,0.8286,2595.7,2595.4,7.865]
[1751523131015,0.8286,2595.7,2595.4,7.864]
[1751523131316,1.0206,2595.7,2595.4,0.02]
[1751523131688,0.8286,2595.7,2595.4,0.02]
[1751523131911,0.9514,2595.5,2595.4,0.02]
[1751523136426,2.8734,2595.5,2595.4,0.02]
[1751523137646,2.114,2595.5,2595.4,0.02]
[1751523137790,1.922,2595.8,2595.4,7.34383554]
[1751523138188,1.922,2595.8,2595.6,7.13183554]
[1751523138431,1.922,2595.8,2595.6,7.32383554]
[1751523139611,1.922,2595.8,2595.6,0.192]
[1751523141514,0.757,2595.7,2595.4,7.864]
[1751523141720,0.757,2595.7,2595.4,8.056]
[1751523143624,0.949,2595.7,2595.4,7.864]
[1751523143835,0.949,2595.7,2595.4,0.02]
[1751523146429,1.922,2595.8,2595.4,0.02]
[1751523146748,1.93,2595.9,2595.5,0.192]
[1751523150857,0.01,2595.9,2595.4,2.32728355]
[1751523151071,0.01,2595.9,2595.7,0.192]
[1751523151864,0.01,2595.9,2595.7,14.97483554]
[1751523152070,0.01,2595.9,2595.8,0.192]
[1751523152557,0.01,2595.9,2595.8,1.78921355]
[1751523156669,0.01,2595.9,2595.8,0.192]
[1751523162783,0.01,2595.9,2595.7,7.841]
[1751523163074,0.01,2595.9,2595.7,8.033]
[1751523163879,0.01,2595.9,2595.7,0.192]
[1751523164082,0.01,2595.9,2595.7,8.033]
[1751523164974,0.01,2595.9,2595.7,8.032]
[1751523168892,0.01,2595.9,2595.7,8.6432]
[1751523169082,0.01,2595.9,2595.8,0.9466]
[1751523171458,0.01,2595.9,2595.8,18.07843554]
[1751523175865,0.01,2595.9,2595.8,10.9466]
[1751523176894,0.01,2595.9,2595.8,0.9466]
[1751523177066,0.01,2595.9,2595.8,2.08016355]
[1751523177399,0.01,2595.9,2595.8,8.03]
[1751523181668,0.01,2595.9,2595.8,25.16183554]
[1751523181868,0.01,2595.9,2595.8,25.93593554]
[1751523182090,0.01,2595.9,2595.8,0.192]
[1751523182302,0.01,2595.9,2595.8,7.837]
[1751523182598,0.7873,2595.9,2595.8,7.837]
[1751523182981,0.7873,2595.9,2595.7,0.192]
[1751523183179,0.7565,2595.8,2595.4,0.02]
[1751523183385,0.26845,2595.7,2595.4,7.857]
[1751523183573,0.9485,2595.8,2595.4,7.857]
[1751523184302,1.918,2595.7,2595.4,7.857]
[1751523184476,1.918,2595.7,2595.6,0.192]
[1751523185264,1.919,2595.8,2595.6,0.192]
[1751523185469,1.919,2595.8,2595.7,7.837]
[1751523188489,0.01,2595.9,2595.7,7.837]
[1751523188778,0.01,2595.9,2595.8,7.13183554]
[1751523189003,0.01,2595.9,2595.8,17.13183554]
[1751523190399,0.01,2595.9,2595.8,17.95353554]
[1751523191704,0.01,2595.9,2595.8,10.8217]
[1751523191892,0.01,2595.9,2595.8,7.836]
[1751523192401,0.8432,2595.9,2595.7,0.192]
[1751523192607,0.8432,2595.9,2595.8,7.836]
[1751523193098,0.8432,2595.9,2595.7,0.192]
[1751523193499,0.8432,2595.9,2595.8,7.836]
[1751523193697,0.8432,2595.9,2595.7,0.192]
[1751523193877,0.8432,2595.9,2595.8,7.836]
[1751523194988,0.01,2595.9,2595.8,7.836]
[1751523195325,0.01,2595.9,2595.8,19.35198355]
[1751523196216,0.01,2595.9,2595.8,11.51598355]
[1751523196381,0.01,2595.9,2595.8,19.35198355]
[1751523199179,0.01,2595.9,2595.8,9.35198355]
[1751523200899,0.01,2595.9,2595.7,0.192]
[1751523201225,0.01,2595.9,2595.8,7.835]
[1751523206640,0.01,2595.9,2595.8,25.76453554]
[1751523206996,0.01,2595.9,2595.8,29.61691245]
[1751523207197,0.01,2595.9,2595.8,25.76453554]
[1751523207419,0.01,2595.9,2595.8,29.35975526]
[1751523209923,0.01,2595.9,2595.8,30.89078667]
[1751523211138,0.01,2595.9,2595.8,34.74316358]
[1751523211428,0.01,2595.9,2595.8,33.76213217]
[1751523213231,0.01,2595.9,2595.8,29.90975526]
[1751523213421,0.01,2595.9,2595.8,29.35975526]
[1751523213617,0.01,2595.9,2595.8,13.59521972]
[1751523213832,0.01,2595.9,2595.7,0.192]
[1751523214030,0.01,2595.9,2595.8,7.834]
[1751523214515,0.01,2595.9,2595.7,8.026]
[1751523216143,0.01,2595.9,2595.7,0.192]
[1751523216432,0.01,2595.9,2595.4,0.02]
[1751523216605,0.8306,2595.8,2595.5,7.834]
[1751523219419,0.8306,2595.8,2595.7,0.192]
[1751523219721,0.8306,2595.8,2595.5,7.834]
[1751523219926,0.8306,2595.8,2595.5,8.026]
[1751523221610,0.8306,2595.8,2595.4,0.02]
[1751523221811,1.0226,2595.8,2595.4,0.02]
[1751523222328,1.917,2595.7,2595.4,0.02]
[1751523224545,1.0226,2595.8,2595.4,0.02]
[1751523224747,1.917,2595.7,2595.4,0.02]
[1751523229043,1.0226,2595.8,2595.4,0.02]
[1751523229342,1.917,2595.7,2595.4,0.02]
[1751523229737,1.0226,2595.8,2595.4,0.02]
[1751523229933,1.917,2595.7,2595.4,0.02]
[1751523235147,1.916,2595.6,2595.4,0.02]
[1751523239742,1.916,2595.6,2595.5,0.192]
[1751523240557,1.916,2595.6,2595.4,0.212]
[1751523242895,1.926,2595.9,2595.5,0.8241]
[1751523243233,1.926,2595.9,2595.6,0.192]
[1751523247248,0.8203,2595.8,2595.4,7.852]
[1751523247447,0.8203,2595.8,2595.4,0.212]
[1751523249977,2.3308,2595.9,2595.4,0.9912]
[1751523251884,2.3308,2595.9,2595.4,0.212]
[1751523252088,2.118,2595.9,2595.4,0.212]
[1751523258499,1.926,2595.9,2595.4,0.02]
[1751523258667,0.192,2595.8,2595.4,0.02]
[1751523258865,0.192,2595.5,2595.4,0.02]
[1751523280022,12.00389638,2595.5,2595.4,0.02]
[1751523280192,12.81119216,2595.5,2595.4,0.02]
[1751523280920,22.81119216,2595.5,2595.4,0.02]
[1751523281618,23.36119216,2595.5,2595.4,0.02]
[1751523285226,31.35119216,2595.5,2595.4,0.02]
[1751523285438,31.36119216,2595.5,2595.4,0.02]
[1751523286525,26.14371797,2595.5,2595.4,0.02]
[1751523286826,33.97371797,2595.5,2595.4,0.02]
[1751523287423,11.83589578,2595.5,2595.4,0.02]
[1751523287727,12.92429578,2595.5,2595.4,0.02]
[1751523288224,2.92429578,2595.5,2595.4,0.02]
[1751523288425,2.117,2595.5,2595.4,0.02]
[1751523288618,12.117,2595.5,2595.4,0.02]
[1751523288997,10.202,2595.5,2595.4,0.02]
[1751523289217,2.117,2595.5,2595.4,0.02]
[1751523290303,0.202,2595.5,2595.4,0.02]
[1751523290528,2.117,2595.5,2595.4,0.02]
[1751523291118,0.202,2595.5,2595.4,0.02]
[1751523291323,1.925,2595.5,2595.4,0.02]
[1751523293740,0.01,2595.5,2595.4,0.02]
[1751523293945,1.924,2595.5,2595.4,0.02]
[1751523298240,0.01,2595.5,2595.4,0.02]
[1751523298444,0.01,2595.5,2595.4,0.8126]
[1751523298743,0.01,2595.5,2595.4,2.18642562]
[1751523299510,0.01,2595.5,2595.4,1.0046]
[1751523301931,0.01,2595.5,2595.4,0.212]
[1751523302133,0.01,2595.5,2595.4,0.02]
[1751523302980,0.01,2595.5,2595.4,1.0008]
[1751523303738,0.01,2595.5,2595.4,18.13327419]
[1751523303931,0.01,2595.5,2595.4,19.94860161]
[1751523305026,0.01,2595.5,2595.4,12.81612742]
[1751523306050,0.01,2595.5,2595.4,11.0008]
[1751523308633,0.01,2595.5,2595.4,1.0008]
[1751523314538,0.01,2595.5,2595.4,0.02]
[1751523314961,0.8417,2595.5,2595.4,0.02]
[1751523315161,11.82699638,2595.5,2595.4,0.02]
[1751523315362,7.97417419,2595.5,2595.4,0.02]
[1751523315562,0.8417,2595.5,2595.4,0.02]
[1751523316044,10.5817,2595.5,2595.4,0.02]
[1751523317742,0.8417,2595.5,2595.4,0.02]
[1751523317937,2.7547,2595.5,2595.4,0.02]
[1751523319837,0.8417,2595.5,2595.4,0.02]
[1751523320171,2.7547,2595.5,2595.4,0.02]
[1751523320549,0.01,2595.5,2595.4,0.02]
[1751523320751,1.923,2595.5,2595.4,0.02]
[1751523322057,5.77582219,2595.5,2595.4,0.02]
[1751523322252,6.58122219,2595.5,2595.4,0.02]
[1751523322844,7.38715105,2595.5,2595.4,0.02]
[1751523323076,17.38715105,2595.5,2595.4,0.02]
[1751523324443,13.53832886,2595.5,2595.4,0.02]
[1751523324648,20.5684,2595.5,2595.4,0.02]
[1751523324970,25.22658774,2595.5,2595.4,0.02]
[1751523325783,24.42122219,2595.5,2595.4,0.02]
[1751523327276,20.5684,2595.5,2595.4,0.02]
[1751523327459,10.5684,2595.5,2595.4,0.02]
[1751523327656,9.763,2595.5,2595.4,0.02]
[1751523327868,0.01,2595.5,2595.4,0.02]
[1751523328076,2.119,2595.5,2595.4,0.02]
[1751523328391,1.927,2595.5,2595.4,0.8379]
[1751523328568,1.927,2595.5,2595.4,1.0299]
[1751523330890,0.01,2595.5,2595.4,1.0299]
[1751523331094,1.927,2595.5,2595.4,1.0299]
[1751523333205,1.927,2595.5,2595.4,0.212]
[1751523334101,1.927,2595.5,2595.4,0.02]
[1751523334398,3.0883,2595.5,2595.4,0.02]
[1751523336789,2.118,2595.5,2595.4,0.02]
[1751523336992,1.926,2595.5,2595.4,0.02]
[1751523337184,1.926,2595.5,2595.4,0.212]
[1751523339398,0.01,2595.5,2595.4,1.0151]
[1751523340411,0.01,2595.5,2595.4,2.11861]
[1751523340808,0.01,2595.5,2595.4,1.0151]
[1751523350008,0.01,2595.5,2595.4,0.212]
[1751523360496,0.01,2595.5,2595.4,18.09768397]
[1751523361208,0.01,2595.5,2595.4,18.64768397]
[1751523361412,0.01,2595.5,2595.4,24.79125111]
[1751523361603,0.01,2595.5,2595.4,26.34632322]
[1751523362998,0.01,2595.9,2595.8,14.40237691]
[1751523363193,0.01,2595.9,2595.8,30.17466088]
[1751523363397,0.01,2595.9,2595.8,30.36666088]
[1751523367637,0.01,2595.9,2595.8,18.8317]
[1751523367814,0.01,2595.9,2595.8,21.10012989]
[1751523368423,0.01,2595.9,2595.8,21.65012989]
[1751523368718,0.01,2595.9,2595.8,25.5025068]
[1751523372509,0.01,2596.5,2595.8,25.5025068]
[1751523372510,0.01,2596.5,2596.4,14.40148667]
[1751523372705,0.01,2596.5,2596.4,18.70118397]
[1751523372905,0.01,2596.5,2596.4,28.78945505]
[1751523374544,0.01,2596.5,2596.4,10.192]
[1751523374714,0.01,2596.5,2596.4,18.025]
[1751523375050,0.01,2596.5,2596.4,0.192]
[1751523375211,0.8158,2596.5,2596.4,7.834]
[1751523375412,0.8158,2596.5,2596.4,7.836]
[1751523375649,0.8158,2596.5,2596.3,0.192]
[1751523375812,0.8158,2596.5,2596.4,7.836]
[1751523378354,0.01,2596.5,2596.2,17.13258397]
[1751523378639,0.01,2596.5,2596.4,0.192]
[1751523378844,0.01,2596.5,2596.4,8.029]
[1751523379048,0.01,2596.5,2596.4,25.16158397]
[1751523379213,0.01,2596.5,2596.4,26.47008397]
[1751523379546,0.01,2596.5,2596.4,33.22582388]
[1751523381742,0.01,2596.5,2596.4,29.37433721]
[1751523381919,0.01,2596.5,2596.4,14.40475324]
[1751523382120,0.01,2596.5,2596.4,22.24175324]
[1751523382342,0.01,2596.5,2596.4,26.09323991]
[1751523383611,0.01,2596.5,2596.4,26.37741384]
[1751523387117,0.01,2596.5,2596.4,28.66590171]
[1751523387535,0.01,2596.5,2596.4,20.8269118]
[1751523387732,0.01,2596.5,2596.4,28.6599118]
[1751523388449,0.01,2596.5,2596.4,26.37341384]
[1751523389035,0.01,2596.6,2596.5,15.20023834]
[1751523389234,0.01,2596.6,2596.5,19.02067769]
[1751523390334,0.01,2596.6,2596.5,21.30762949]
[1751523391151,0.01,2596.6,2596.5,19.02067769]
[1751523391558,0.01,2596.6,2596.5,21.30821824]
[1751523391755,0.01,2596.6,2596.5,1.52551578]
[1751523392056,0.01,2596.6,2596.5,7.83]
[1751523394048,0.01,2596.6,2596.4,0.192]
[1751523394250,0.01,2596.6,2596.5,7.834]
[1751523396754,0.01,2596.6,2596.4,0.192]
[1751523396931,0.01,2596.6,2596.4,8.027]
[1751523398085,0.01,2596.6,2596.5,10.0]
[1751523398368,0.01,2596.6,2596.5,14.40133834]
[1751523398570,0.01,2596.6,2596.5,15.17663834]
[1751523401260,0.01,2596.6,2596.5,17.46417889]